bitfinex-derivatives/quotes_SOLF0:USTF0_20250630
["timestamp","ask_amount","ask_price","bid_price","bid_amount"]
[1751283505649,39.7985,151.06,151.04,6.6192]
[1751283509349,35.98488312,151.06,151.0,6.18856373]
[1751283509552,2.80488312,151.04,150.99,6.18856373]
[1751283509947,9.42438312,151.04,150.99,6.18856373]
[1751283510953,9.42438312,151.04,151.01,6.6202]
[1751283512355,6.6197,151.03,151.01,6.6202]
[1751283515753,9.42438312,151.04,151.01,6.6202]
[1751283515956,9.42438312,151.04,151.02,6.62]
[1751283516156,35.98488312,151.06,150.99,6.18856373]
[1751283516355,6.619,151.05,150.99,6.18856373]
[1751283516562,6.619,151.05,151.03,6.6194]
[1751283516759,6.619,151.05,150.99,8.99344685]
[1751283517161,6.619,151.05,150.99,6.18856373]
[1751283517463,9.42388312,151.05,150.99,6.18856373]
[1751283517665,9.42388312,151.05,151.02,6.6198]
[1751283518460,6.6193,151.04,151.02,6.6198]
[1751283519970,6.619,151.05,151.03,6.6193]
[1751283521268,2.80488312,151.04,151.03,6.6193]
[1751283524267,9.42418312,151.04,151.02,6.6199]
[1751283524473,2.80488312,151.04,151.0,6.18856373]
[1751283524975,2.80488312,151.04,151.02,6.6197]
[1751283525274,2.80488312,151.04,151.0,6.18856373]
[1751283525472,2.80488312,151.04,150.99,6.18856373]
[1751283526362,2.80488312,151.04,151.02,6.6198]
[1751283527277,6.6193,151.04,151.02,6.6198]
[1751283535173,130.56598503,151.03,150.99,6.18856373]
[1751283535374,130.56598503,151.03,150.95,12.37712746]
[1751283535375,2.80816098,151.0,150.92,11.05957929]
[1751283535577,2.80816098,151.0,150.93,8.25141831]
[1751283535770,33.02,151.02,150.89,8.25141831]
[1751283535771,2.80816098,150.94,150.89,8.25141831]
[1751283536076,2.80816098,150.96,150.9,8.25141831]
[1751283536274,2.80816098,150.96,150.89,8.25141831]
[1751283536777,6.6233,150.95,150.92,6.6242]
[1751283539383,6.6233,150.95,150.93,6.624]
[1751283540877,6.6233,150.95,150.88,2.80816098]
[1751283541182,2.80816098,150.94,150.88,11.05957929]
[1751283541383,9.43086098,150.96,150.88,11.05957929]
[1751283541579,9.43086098,150.96,150.93,6.6237]
[1751283542781,2.80816098,150.94,150.88,8.25141831]
[1751283542978,2.80816098,150.94,150.86,22.17208844]
[1751283542979,2.80816098,150.9,150.86,6.9868]
[1751283543284,2.80816098,150.9,150.89,6.6258]
[1751283543472,33.04,150.93,150.89,6.6258]
[1751283543679,2.80816098,150.9,150.86,6.9868]
[1751283544182,2.80816098,150.88,150.82,33.04]
[1751283544372,33.04,150.93,150.83,6.9452]
[1751283544575,2.80816098,150.9,150.83,6.9452]
[1751283545777,2.80816098,150.9,150.89,6.6258]
[1751283549580,2.80816098,150.92,150.85,2.80816098]
[1751283550289,2.80816098,150.92,150.91,6.6249]
[1751283551888,2.80816098,150.92,150.9,6.6252]
[1751283552485,9.43286098,150.92,150.84,2.80816098]
[1751283553595,9.43286098,150.92,150.9,6.625]
[1751283553596,2.80816098,150.92,150.9,6.625]
[1751283555786,2.80816098,150.92,150.83,6.9452]
[1751283555985,2.80816098,150.87,150.83,6.9452]
[1751283556489,2.80816098,150.87,150.86,6.6268]
[1751283557293,2.80816098,150.87,150.85,6.6274]
[1751283557789,2.80816098,150.87,150.86,6.6271]
[1751283558394,2.80816098,150.87,150.85,6.6274]
[1751283558987,2.80816098,150.87,150.86,6.6271]
[1751283559696,2.80816098,150.87,150.85,6.6273]
[1751283559894,2.80816098,150.87,150.83,2.369]
[1751283560987,2.80816098,150.87,150.85,6.6273]
[1751283562507,9.43496098,150.87,150.85,6.6273]
[1751283562709,2.80816098,150.87,150.86,6.6271]
[1751283564511,2.80816098,150.87,150.85,6.6273]
[1751283565911,2.80816098,150.87,150.86,6.6271]
[1751283569617,2.80816098,150.87,150.81,33.04]
[1751283569911,2.80816098,150.83,150.78,6.7234]
[1751283570116,2.80816098,150.88,150.78,6.7234]
[1751283570306,2.80816098,150.85,150.82,6.6286]
[1751283570817,2.80816098,150.83,150.78,6.7234]
[1751283571009,2.80816098,150.81,150.77,33.26]
[1751283571508,2.80816098,150.79,150.74,33.26]
[1751283572809,2.80816098,150.79,150.77,6.6309]
[1751283573913,2.80816098,150.79,150.78,6.6306]
[1751283574304,33.26,150.81,150.75,2.80816098]
[1751283574505,2.80816098,150.83,150.77,2.80816098]
[1751283574708,42.69616098,150.85,150.77,2.80816098]
[1751283574913,36.06816098,150.85,150.81,6.629]
[1751283575307,2.80816098,150.83,150.81,6.629]
[1751283575512,2.80816098,150.83,150.82,6.6289]
[1751283575709,2.80816098,150.83,150.77,2.80816098]
[1751283576413,2.80816098,150.83,150.81,6.629]
[1751283577015,6.6289,150.82,150.79,6.6299]
[1751283577210,2.80816098,150.81,150.79,6.6299]
[1751283577416,2.80816098,150.81,150.74,36.06816098]
[1751283577821,2.80816098,150.81,150.79,6.6298]
[1751283578424,2.80816098,150.81,150.74,36.06816098]
[1751283578718,2.80816098,150.81,150.8,6.6298]
[1751283583226,2.80816098,150.81,150.79,6.63]
[1751283583827,2.80816098,150.81,150.78,6.6305]
[1751283584027,164.64816098,150.81,150.78,6.6305]
[1751283584327,2.80816098,150.79,150.78,6.6305]
[1751283594331,2.80816098,150.79,150.73,4.5901]
[1751283594832,9.43856098,150.79,150.76,6.6311]
[1751283595129,9.43856098,150.79,150.73,4.5901]
[1751283596232,9.43856098,150.79,150.77,6.6308]
[1751283598734,9.43856098,150.79,150.76,6.6313]
[1751283600835,6.6306,150.78,150.76,6.6313]
[1751283601038,2.80816098,150.77,150.75,6.6317]
[1751283602940,2.80816098,150.77,150.74,6.6321]
[1751283603433,2.80816098,150.77,150.73,2.279]
[1751283603434,2.80816098,150.77,150.75,6.6319]
[1751283608144,6.6306,150.78,150.75,6.6319]
[1751283608445,9.43876098,150.78,150.75,6.6319]
[1751283610341,9.43876098,150.78,150.76,6.6314]
[1751283611038,9.43876098,150.78,150.75,6.6317]
[1751283611346,9.43876098,150.78,150.73,2.279]
[1751283612537,9.43876098,150.78,150.75,6.6316]
[1751283613745,9.43876098,150.78,150.76,6.6315]
[1751283614544,6.6311,150.77,150.75,6.6317]
[1751283614746,2.80816098,150.78,150.75,6.6317]
[1751283615546,9.43896098,150.78,150.75,6.6317]
[1751283617746,1.80216615,150.76,150.75,6.6317]
[1751283621248,6.24397838,150.76,150.75,6.6317]
[1751283622446,8.47846984,150.76,150.75,6.6317]
[1751283623446,4.03665761,150.76,150.75,6.6317]
[1751283623648,8.47961442,150.76,150.75,6.6317]
[1751283625869,8.47961442,150.76,150.74,6.632]
[1751283626067,8.47961442,150.75,150.74,6.632]
[1751283626264,6.24512296,150.75,150.74,6.632]
[1751283627159,6.67835429,150.75,150.74,6.632]
[1751283627361,8.48052044,150.75,150.74,6.632]
[1751283629064,6.67835429,150.75,150.74,6.632]
[1751283632074,2.23539748,150.75,150.74,6.632]
[1751283632369,4.03756363,150.75,150.74,6.632]
[1751283632973,8.4711436,150.75,150.74,6.632]
[1751283633972,6.66897745,150.75,150.74,6.632]
[1751283634171,8.4711436,150.75,150.74,6.632]
[1751283635767,8.4711436,150.75,150.73,6.6324]
[1751283635969,8.47113712,150.74,150.73,6.6324]
[1751283636374,6.23574612,150.74,150.73,6.6324]
[1751283637075,8.47108785,150.74,150.73,6.6324]
[1751283642068,2.23534173,150.75,150.74,6.6322]
[1751283642275,4.03340397,150.75,150.71,10.33631898]
[1751283642470,1.80216615,150.75,150.71,10.33631898]
[1751283643576,1.80216615,150.75,150.74,6.6322]
[1751283643777,2.23127217,150.75,150.74,6.6322]
[1751283643979,4.03343832,150.76,150.72,1.80216615]
[1751283644172,1.80216615,150.76,150.72,7.96921898]
[1751283644882,33.02,150.77,150.75,6.6318]
[1751283645179,1.80216615,150.76,150.75,6.6318]
[1751283647275,4.03318124,150.76,150.75,6.6318]
[1751283648074,2.23101509,150.76,150.75,8.43396615]
[1751283648279,6.59318429,150.79,150.75,1.80216615]
[1751283648480,6.59318429,150.78,150.76,1.80216615]
[1751283648679,4.36235752,150.79,150.76,1.80216615]
[1751283648880,4.36235752,150.78,150.77,6.6309]
[1751283649081,1.80216615,150.8,150.76,1.80216615]
[1751283649082,4.36235752,150.79,150.76,1.80216615]
[1751283649385,6.16452367,150.79,150.75,7.96921898]
[1751283649580,1.80216615,150.78,150.75,6.16705283]
[1751283649777,2.81534688,150.79,150.73,6.16705283]
[1751283650085,4.39744258,150.78,150.73,6.16705283]
[1751283650284,4.39744258,150.77,150.73,6.16705283]
[1751283650486,4.39744258,150.78,150.73,6.16705283]
[1751283650785,7.21278946,150.77,150.72,6.16705283]
[1751283650982,2.81534688,150.77,150.72,6.16705283]
[1751283651487,9.44674688,150.77,150.74,6.6319]
[1751283651882,4.42234821,150.76,150.74,6.6319]
[1751283653587,11.05374821,150.76,150.74,6.6319]
[1751283656382,9.44644688,150.77,150.74,6.6319]
[1751283656582,4.42288889,150.76,150.74,6.6319]
[1751283656784,9.44644688,150.77,150.74,6.6319]
[1751283656984,11.05428889,150.76,150.74,6.6319]
[1751283657185,2.81534688,150.75,150.73,6.6325]
[1751283658279,9.44724688,150.75,150.72,6.6329]
[1751283658683,2.81534688,150.75,150.69,41.22245283]
[1751283658884,9.44814688,150.73,150.71,6.6333]
[1751283659086,2.81534688,150.73,150.71,6.6333]
[1751283661388,2.81534688,150.73,150.72,6.6331]
[1751283661885,7.25106345,150.73,150.72,6.6331]
[1751283662090,4.43571657,150.73,150.72,6.6331]
[1751283662291,4.43571657,150.75,150.74,6.6322]
[1751283669288,7.25106345,150.76,150.74,6.6322]
[1751283670187,4.43571657,150.75,150.74,6.6322]
[1751283672294,4.43571657,150.76,150.74,6.6322]
[1751283672496,4.43571657,150.75,150.74,6.6322]
[1751283672794,11.06711657,150.76,150.74,6.6322]
[1751283672996,4.43571657,150.75,150.74,6.6322]
[1751283675395,4.43571657,150.75,150.73,6.6324]
[1751283677801,1.80251554,150.74,150.73,6.6324]
[1751283679701,4.43571657,150.75,150.73,6.6324]
[1751283679890,1.80251554,150.74,150.73,6.6324]
[1751283684202,6.23823211,150.75,150.73,6.6324]
[1751283684402,1.80251554,150.75,150.73,6.6324]
[1751283685804,1.80251554,150.74,150.73,6.6324]
[1751283688406,11.06711657,150.76,150.74,6.6322]
[1751283688706,1.80251554,150.75,150.74,6.6322]
[1751283689301,4.43571657,150.76,150.75,6.6318]
[1751283689508,1.80251554,150.77,150.75,6.6318]
[1751283689707,4.43571657,150.76,150.75,6.6318]
[1751283691209,6.23823211,150.76,150.74,6.632]
[1751283693004,4.43571657,150.76,150.75,6.6318]
[1751283693408,4.43571657,150.76,150.73,1.80251554]
[1751283693409,4.43571657,150.77,150.74,1.80251554]
[1751283693708,32.88,150.78,150.77,6.6309]
[1751283693900,37.21083219,150.78,150.77,6.6309]
[1751283694606,4.33083219,150.78,150.77,8.43341554]
[1751283695007,4.33083219,150.8,150.79,6.63]
[1751283699809,42.32289749,150.82,150.79,6.63]
[1751283700413,4.33974187,150.81,150.79,6.63]
[1751283700621,42.32289749,150.82,150.79,6.63]
[1751283700913,4.33974187,150.81,150.79,6.63]
[1751283701108,4.33974187,150.8,150.79,6.63]
[1751283704617,8.76493897,150.8,150.79,6.63]
[1751283709517,6.6292,150.81,150.79,6.63]
[1751283709922,42.32289749,150.82,150.8,6.6295]
[1751283710113,35.69399749,150.82,150.75,5.02679749]
[1751283710309,127.76,150.83,150.77,2.81399749]
[1751283710618,127.76,150.83,150.77,41.86105032]
[1751283711010,127.76,150.83,150.82,6.6287]
[1751283711525,132.18263344,150.83,150.82,6.6287]
[1751283715728,133.98320159,150.83,150.82,6.6287]
[1751283718626,133.98320159,150.83,150.81,6.6289]
[1751283718830,1.80056815,150.82,150.81,6.6289]
[1751283721231,129.56056815,150.83,150.82,6.6287]
[1751283721925,127.76,150.83,150.82,6.6287]
[1751283722125,1.80056815,150.84,150.83,6.6283]
[1751283723432,1.80056815,150.85,150.84,6.6277]
[1751283723740,1.80056815,150.85,150.81,1.80056815]
[1751283724228,1.80056815,150.84,150.83,6.628]
[1751283730228,201.33101759,150.87,150.85,6.6272]
[1751283730431,1.80056815,150.86,150.85,6.6272]
[1751283733738,129.9041,150.9,150.84,1.80056815]
[1751283733930,1.80056815,150.88,150.84,1.80056815]
[1751283734132,1.80056815,150.88,150.87,6.6265]
[1751283735643,1.80056815,150.88,150.86,6.6268]
[1751283735836,1.80056815,150.87,150.86,6.6268]
[1751283736033,1.80056815,150.87,150.83,6.628]
[1751283736237,1.80056815,150.84,150.83,6.628]
[1751283736432,1.80056815,150.84,150.8,32.84]
[1751283736741,1.80056815,150.84,150.79,7.96762098]
[1751283736944,1.80056815,150.83,150.8,32.84]
[1751283737145,1.80056815,150.82,150.8,32.84]
[1751283737334,1.80056815,150.82,150.81,6.6292]
[1751283737738,4.43012265,150.86,150.81,6.6292]
[1751283737739,9.44134634,150.84,150.81,6.6292]
[1751283738134,9.44134634,150.84,150.78,37.2631]
[1751283740938,6.6283,150.83,150.78,4.4231]
[1751283741141,6.6283,150.83,150.8,6.6293]
[1751283741543,6.6283,150.83,150.78,37.2431]
[1751283742546,6.6283,150.83,150.8,6.6294]
[1751283742748,9.44244634,150.82,150.78,37.2431]
[1751283743044,9.44244634,150.82,150.79,6.6297]
[1751283743248,9.44244634,150.82,150.78,35.0011]
[1751283743446,2.81334634,150.82,150.78,35.0011]
[1751283743749,2.81334634,150.82,150.8,6.6294]
[1751283746241,7.24346899,150.82,150.76,32.82]
[1751283746448,2.81334634,150.8,150.76,32.82]
[1751283748250,2.81334634,150.8,150.79,6.63]
[1751283748950,9.44294634,150.8,150.78,6.6302]
[1751283749155,2.81334634,150.8,150.76,32.82]
[1751283749449,2.81334634,150.78,150.73,45.68161156]
[1751283750148,2.81334634,150.78,150.73,39.493]
[1751283750449,2.81334634,150.76,150.71,6.18861156]
[1751283750756,2.81334634,150.76,150.75,6.6318]
[1751283752854,2.81334634,150.76,150.74,6.6321]
[1751283753356,2.81334634,150.76,150.7,32.82]
[1751283755157,2.81334634,150.76,150.74,6.632]
[1751283755655,2.81334634,150.76,150.7,32.82]
[1751283755851,32.82,150.78,150.7,32.82]
[1751283755852,2.81334634,150.74,150.7,32.82]
[1751283756755,2.81334634,150.74,150.72,6.6327]
[1751283759151,2.81334634,150.74,150.71,6.6333]
[1751283759451,2.81334634,150.74,150.68,6.6097]
[1751283759953,2.81334634,150.74,150.72,6.6329]
[1751283761253,2.81334634,150.74,150.68,6.6097]
[1751283761856,2.81334634,150.74,150.68,39.4497]
[1751283762665,2.81334634,150.74,150.72,6.6331]
[1751283764561,2.81334634,150.74,150.71,6.6333]
[1751283764761,2.81334634,150.74,150.68,39.4497]
[1751283765155,2.81334634,150.74,150.68,37.2844]
[1751283765558,6.6323,150.74,150.7,6.634]
[1751283765854,2.81334634,150.73,150.66,32.84]
[1751283766257,2.81334634,150.73,150.7,6.6338]
[1751283767362,2.81334634,150.73,150.71,6.6335]
[1751283768259,2.81334634,150.73,150.7,6.6338]
[1751283772166,9.44604634,150.73,150.7,6.6338]
[1751283773768,2.81334634,150.71,150.7,6.6338]
[1751283774762,2.81334634,150.71,150.66,32.84]
[1751283774966,2.81334634,150.69,150.66,32.84]
[1751283775173,2.81334634,150.69,150.64,6.5913]
[1751283775463,2.81334634,150.69,150.68,6.6349]
[1751283775861,1.80402376,150.69,150.68,6.6349]
[1751283777767,1.80402376,150.69,150.64,6.5913]
[1751283777967,2.81894712,150.69,150.64,6.5913]
[1751283778365,2.81894712,150.69,150.67,6.635]
[1751283778963,2.81894712,150.69,150.66,6.6355]
[1751283779670,2.81894712,150.68,150.66,6.6355]
[1751283781067,2.81894712,150.68,150.65,6.636]
[1751283781262,2.81894712,150.68,150.63,32.88]
[1751283782166,2.81894712,150.68,150.66,6.6355]
[1751283789676,2.81894712,150.68,150.67,6.6353]
[1751283791374,2.81894712,150.68,150.66,6.6356]
[1751283799783,1.80441996,150.67,150.66,6.6356]
[1751283805085,1.80441996,150.67,150.61,12.84661156]
[1751283805086,1.80441996,150.67,150.65,6.636]
[1751283805282,1.80441996,150.66,150.65,6.636]
[1751283807986,6.6347,150.69,150.61,47.49103152]
[1751283807987,32.88,150.7,150.63,1.80441996]
[1751283808183,6.18861156,150.72,150.66,1.80441996]
[1751283808382,1.80441996,150.7,150.66,1.80441996]
[1751283808577,1.80441996,150.71,150.7,6.6337]
[1751283814392,1.80441996,150.71,150.67,2.1657]
[1751283814689,1.80441996,150.68,150.67,2.1657]
[1751283814890,1.80441996,150.68,150.67,8.801]
[1751283817387,1.80441996,150.69,150.68,6.6349]
[1751283817794,2.81804472,150.71,150.69,6.6343]
[1751283818495,2.81804472,150.71,150.7,6.634]
[1751283819583,163.39804472,150.73,150.71,6.6333]
[1751283819793,163.39804472,150.73,150.67,2.1657]
[1751283820084,163.39804472,150.73,150.7,6.6338]
[1751283820490,163.39804472,150.73,150.67,2.1657]
[1751283820891,163.39804472,150.73,150.7,6.6336]
[1751283822188,2.81804472,150.71,150.7,6.6336]
[1751283825802,2.81804472,150.71,150.69,6.6343]
[1751283826798,163.39804472,150.73,150.67,2.1657]
[1751283827101,160.58,150.73,150.67,8.35431156]
[1751283828293,160.58,150.73,150.72,6.6331]
[1751283828495,35.65804472,150.76,150.68,35.65804472]
[1751283828695,35.65804472,150.76,150.68,41.84665628]
[1751283829205,35.65804472,150.76,150.69,6.18861156]
[1751283829700,35.65804472,150.76,150.68,41.84665628]
[1751283832605,35.65804472,150.76,150.73,6.6325]
[1751283836409,35.65804472,150.76,150.74,6.6322]
[1751283839012,42.28944472,150.76,150.73,6.6325]
[1751283839507,2.81804472,150.74,150.73,6.6325]
[1751283843807,1.80275164,150.74,150.73,6.6325]
[1751283848506,39.4715,150.76,150.74,6.6322]
[1751283848710,1.80275164,150.75,150.74,6.6322]
[1751283852519,1.80275164,150.75,150.74,6.6322]
[1751283857817,1.80275164,150.75,150.68,39.02861156]
[1751283858023,1.80275164,150.7,150.68,32.84]
[1751283858411,1.80275164,150.7,150.69,6.6345]
[1751283859222,1.80275164,150.71,150.7,6.6341]
[1751283865430,1.80342116,150.71,150.7,6.6341]
[1751283870129,1.80342116,150.71,150.68,39.02861156]
[1751283870735,1.80342116,150.71,150.7,6.6341]
[1751283872332,1.80353838,150.71,150.7,6.6341]
[1751283874033,1.80353838,150.71,150.68,32.84]
[1751283874336,1.80353838,150.69,150.68,39.4749]
[1751283877235,1.80353838,150.7,150.69,6.6345]
[1751283891943,1.80353838,150.7,150.68,6.6348]
[1751283892148,1.80353838,150.69,150.63,6.18861156]
[1751283892346,1.80353838,150.66,150.63,6.18861156]
[1751283892647,1.80353838,150.65,150.62,43.01604994]
[1751283892844,6.6344,150.7,150.62,43.01604994]
[1751283893043,1.80353838,150.67,150.63,7.99214994]
[1751283893249,6.6344,150.7,150.63,7.99214994]
[1751283893548,1.80353838,150.66,150.63,6.18861156]
[1751283893748,1.80353838,150.66,150.65,6.6364]
[1751283895345,1.80353838,150.67,150.66,6.6359]
[1751283896849,6.6344,150.7,150.67,6.6351]
[1751283897051,1.80353838,150.68,150.67,6.6351]
[1751283900556,32.78,150.72,150.65,1.80353838]
[1751283900760,596.98,150.8,150.64,13.2735]
[1751283900761,7.99214994,150.78,150.71,1.80353838]
[1751283900955,1.80353838,150.78,150.73,1.80353838]
[1751283901752,1.80353838,150.77,150.76,6.6312]
[1751283902061,9.44540324,150.79,150.76,6.6312]
[1751283902559,9.44540324,150.79,150.77,6.631]
[1751283902754,115.07251321,150.81,150.73,2.81500324]
[1751283902957,106.06889841,150.81,150.75,2.81500324]
[1751283903152,106.06889841,150.81,150.75,35.57500324]
[1751283903658,108.88390165,150.81,150.75,35.57500324]
[1751283904056,108.88390165,150.81,150.8,6.6297]
[1751283904262,32.76,150.81,150.8,6.6297]
[1751283904463,2.81500324,150.83,150.76,4.5202]
[1751283905859,2.81500324,150.81,150.79,6.6299]
[1751283908665,2.81500324,150.81,150.8,6.6297]
[1751283915768,9.44450324,150.81,150.75,34.9563]
[1751283916065,2.81500324,150.79,150.75,34.9563]
[1751283916365,2.81500324,150.79,150.78,6.6306]
[1751283916965,2.81500324,150.79,150.77,6.6309]
[1751283917175,2.81500324,150.78,150.73,32.74]
[1751283917365,2.81500324,150.76,150.73,32.74]
[1751283918663,2.81500324,150.76,150.75,6.6319]
[1751283927381,6.6304,150.79,150.76,6.6311]
[1751283927575,2.81500324,150.77,150.76,6.6311]
[1751283931775,1.80230165,150.77,150.76,6.6311]
[1751283932278,1.80230165,150.78,150.74,1.80230165]
[1751283932478,32.72,150.83,150.75,1.80230165]
[1751283932784,1.80230165,150.79,150.78,6.6306]
[1751283932982,1.80230165,150.8,150.76,1.80230165]
[1751283933476,1.80230165,150.8,150.79,6.6302]
[1751283933678,1.80230165,150.8,150.76,1.80230165]
[1751283933876,1.80230165,150.79,150.76,1.80230165]
[1751283934076,1.80230165,150.78,150.75,34.52230165]
[1751283934477,1.80230165,150.78,150.75,32.72]
[1751283935584,1.80230165,150.78,150.77,6.6311]
[1751283935784,2.8145723,150.8,150.75,32.72]
[1751283936086,2.8145723,150.81,150.75,32.72]
[1751283937687,2.8145723,150.81,150.8,6.6297]
[1751283944590,32.72,150.83,150.82,6.6288]
[1751283944792,35.5345723,150.83,150.82,6.6288]
[1751283945892,127.58,150.84,150.83,6.6284]
[1751283954192,134.208,150.84,150.82,6.6287]
[1751283954501,2.8145723,150.83,150.82,6.6287]
[1751283954689,6.1624781,150.89,150.8,32.7]
[1751283954894,2.8145723,150.88,150.81,5.0802723]
[1751283955294,2.8145723,150.88,150.82,2.3609]
[1751283955492,9.4407723,150.88,150.82,2.3609]
[1751283956395,13.86341528,150.88,150.82,2.3609]
[1751283956593,2.8145723,150.87,150.82,2.3609]
[1751283959699,2.8145723,150.87,150.86,6.6271]
[1751283961400,9.4411723,150.87,150.85,6.6273]
[1751283961599,2.8145723,150.87,150.82,2.3609]
[1751283963200,2.8145723,150.87,150.85,6.6272]
[1751283964806,2.8145723,150.87,150.86,6.6271]
[1751283966702,9.4411723,150.87,150.85,6.6273]
[1751283966904,2.8145723,150.87,150.85,6.6273]
[1751283967703,2.8145723,150.87,150.86,6.6271]
[1751283967903,1.7999714,150.87,150.86,6.6271]
[1751283969605,34.4799714,150.87,150.8,32.7]
[1751283969905,1.7999714,150.81,150.8,32.7]
[1751283970697,1.7999714,150.81,150.8,39.3297]
[1751283971499,1.7999714,150.82,150.81,6.6293]
[1751283971902,2.81339756,150.84,150.83,6.6283]
[1751283983010,7.25653585,150.84,150.83,6.6283]
[1751283992414,39.91653585,150.84,150.83,6.6283]
[1751283992614,46.54453585,150.84,150.82,6.6286]
[1751283992817,4.44782885,150.83,150.82,6.6286]
[1751283993819,6.24865517,150.83,150.82,6.6286]
[1751283998315,12.87705517,150.83,150.77,34.8413]
[1751283998613,12.87705517,150.83,150.76,4.6627]
[1751283998614,1.80082632,150.78,150.76,4.6627]
[1751283998818,1.80082632,150.77,150.76,8.9258]
[1751283999421,1.80082632,150.77,150.76,6.6315]
[1751284000517,6.23673493,150.77,150.76,6.6315]
[1751284000723,1.80082632,150.77,150.76,6.6315]
[1751284000916,6.23673493,150.77,150.76,6.6315]
[1751284001225,1.80082632,150.77,150.76,6.6315]
[1751284002725,4.43590861,150.79,150.78,6.6306]
[1751284002923,1.80082632,150.81,150.77,1.80082632]
[1751284003120,129.16082632,150.82,150.81,6.6293]
[1751284003923,127.36,150.82,150.81,6.6293]
[1751284007724,131.7815408,150.82,150.81,6.6293]
[1751284010034,138.4103408,150.82,150.77,6.8269]
[1751284010231,7.23490293,150.81,150.77,6.8269]
[1751284010437,4.4215408,150.8,150.77,6.8269]
[1751284010636,2.81336213,150.81,150.77,6.8269]
[1751284010835,4.42288096,150.8,150.77,6.8269]
[1751284011037,2.81336213,150.81,150.77,6.8269]
[1751284011237,4.42306724,150.8,150.77,6.8269]
[1751284011433,2.81336213,150.81,150.77,6.8269]
[1751284011629,4.42306855,150.8,150.77,6.8269]
[1751284011839,2.81336213,150.81,150.8,6.6297]
[1751284012039,7.23643068,150.81,150.8,6.6297]
[1751284013239,2.81336213,150.81,150.8,6.6297]
[1751284016238,2.81336213,150.81,150.76,32.66]
[1751284016440,2.81336213,150.81,150.74,6.1624781]
[1751284016740,2.81336213,150.79,150.74,6.1624781]
[1751284017039,2.81336213,150.79,150.73,43.5129781]
[1751284017641,2.81336213,150.79,150.78,6.6304]
[1751284023238,6.6295,150.81,150.79,6.63]
[1751284023434,9.44286213,150.81,150.79,6.63]
[1751284025744,1.80143023,150.8,150.79,6.63]
[1751284029948,127.36,150.82,150.75,1.80143023]
[1751284030149,129.16143023,150.82,150.77,1.80143023]
[1751284030850,127.36,150.82,150.81,6.6293]
[1751284031054,129.16143023,150.82,150.76,1.80143023]
[1751284031251,1.80143023,150.79,150.75,1.80143023]
[1751284031549,1.80143023,150.79,150.78,6.6306]
[1751284031749,2.81458091,150.81,150.74,13.2645]
[1751284032252,2.81458091,150.81,150.8,6.6294]
[1751284043863,2.81458091,150.81,150.79,6.6299]
[1751284044059,9.44388091,150.81,150.79,6.6299]
[1751284046666,2.81458091,150.81,150.79,6.6299]
[1751284047163,9.44428091,150.81,150.79,6.6299]
[1751284047368,2.81458091,150.81,150.74,6.19690766]
[1751284047665,2.81458091,150.79,150.74,6.19690766]
[1751284047864,6.6299,150.8,150.78,6.6306]
[1751284048067,2.81458091,150.79,150.78,6.6306]
[1751284051769,1.80161323,150.79,150.78,6.6306]
[1751284054667,1.80161323,150.8,150.79,6.6302]
[1751284059075,1.80161323,150.8,150.78,6.6304]
[1751284059277,1.80161323,150.79,150.78,6.6304]
[1751284067872,4.03030562,150.79,150.78,6.6304]
[1751284068580,10.66060562,150.79,150.77,6.6308]
[1751284068778,4.03030562,150.78,150.77,6.6308]
[1751284070481,4.03030562,150.78,150.75,6.6316]
[1751284070780,1.80161323,150.76,150.75,6.6316]
[1751284070980,4.03030562,150.76,150.74,6.6321]
[1751284071169,4.03030562,150.75,150.74,6.6321]
[1751284075276,1.80161323,150.75,150.74,6.6321]
[1751284077386,1.80161323,150.76,150.72,4.00631323]
[1751284078186,1.80161323,150.76,150.75,6.6319]
[1751284079384,1.80161323,150.79,150.75,1.80161323]
[1751284079885,1.80161323,150.79,150.73,8.55530766]
[1751284079886,1.80161323,150.78,150.77,6.631]
[1751284082992,38.81593613,150.81,150.77,6.631]
[1751284083287,1.80161323,150.78,150.77,6.631]
[1751284093897,1.80161323,150.78,150.77,6.631]
[1751284111013,1.80161323,150.78,150.76,6.6312]
[1751284111214,1.80161323,150.77,150.76,6.6312]
[1751284113114,45.40613613,150.79,150.76,6.6312]